bitfinex-derivatives/quotes_SOLF0:USTF0_20250516
["timestamp","ask_amount","ask_price","bid_price","bid_amount"]
[1747410847016,121.5,171.77,171.76,5.82]
[1747410847323,60.64,171.77,171.76,5.82]
[1747410847524,60.64,171.77,171.68,60.86]
[1747410849924,60.64,171.77,171.75,5.8201]
[1747410850125,60.64,171.77,171.68,60.86]
[1747410851517,60.56,171.77,171.69,11.6448]
[1747410851921,60.56,171.77,171.76,5.82]
[1747410852426,60.86,171.8,171.79,5.819]
[1747410852626,121.4,171.8,171.79,5.819]
[1747410852827,121.4,171.8,171.69,72.5048]
[1747410853035,5.8192,171.79,171.75,5.8203]
[1747410853620,5.8192,171.79,171.69,72.5048]
[1747410854527,5.8194,171.78,171.75,5.8202]
[1747410855227,5.8191,171.79,171.76,5.82]
[1747410855738,5.8191,171.79,171.69,60.86]
[1747410856037,5.8191,171.79,171.75,5.8202]
[1747410856418,5.8191,171.79,171.69,60.86]
[1747410857333,5.8191,171.79,171.76,5.82]
[1747410857537,5.8191,171.79,171.69,60.86]
[1747410858031,5.8191,171.79,171.75,5.82]
[1747410859236,5.8194,171.78,171.75,5.82]
[1747410859639,121.4,171.8,171.73,5.8208]
[1747410859840,5.8197,171.77,171.69,60.86]
[1747410860042,60.38,171.76,171.69,60.86]
[1747410861038,60.38,171.76,171.74,5.8204]
[1747410862536,60.38,171.76,171.75,5.8204]
[1747410862839,60.86,171.8,171.69,60.86]
[1747410863039,60.3,171.79,171.69,60.86]
[1747410863339,60.3,171.79,171.78,5.8193]
[1747410863736,60.3,171.79,171.77,5.8195]
[1747410863936,60.3,171.79,171.69,69.36857433]
[1747410865537,60.3,171.79,171.78,5.8193]
[1747410875352,502.4,171.84,171.73,60.42]
[1747410875551,120.7,171.83,171.74,3.9179]
[1747410875750,120.7,171.83,171.74,5.9142]
[1747410876049,120.7,171.83,171.81,5.8181]
[1747410876251,120.7,171.83,171.74,5.9142]
[1747410876844,60.42,171.83,171.74,5.9142]
[1747410877043,60.28,171.82,171.74,5.9142]
[1747410877244,60.42,171.83,171.82,5.818]
[1747410877654,120.7,171.83,171.82,5.818]
[1747410877954,60.28,171.83,171.82,5.818]
[1747410879441,8.50857433,171.86,171.82,5.818]
[1747410879646,60.28,171.83,171.82,5.818]
[1747410880053,60.28,171.84,171.77,60.4]
[1747410880447,60.28,171.84,171.83,5.8177]
[1747410881256,60.28,171.84,171.77,60.4]
[1747410881654,60.28,171.84,171.83,5.8173]
[1747410882256,60.28,171.84,171.82,5.8178]
[1747410883856,60.28,171.84,171.83,5.8177]
[1747410884156,60.28,171.84,171.77,60.4]
[1747410885856,66.0976,171.84,171.77,60.4]
[1747410886155,60.28,171.84,171.77,60.4]
[1747410886356,60.28,171.84,171.83,5.8177]
[1747410887058,74.72537433,171.86,171.83,5.8177]
[1747410887359,60.26,171.85,171.84,5.8173]
[1747410888657,60.4,171.86,171.85,5.817]
[1747410888858,120.66,171.86,171.77,60.4]
[1747410889360,60.4,171.86,171.85,5.817]
[1747410889559,60.26,171.86,171.85,5.817]
[1747410900962,60.26,171.86,171.84,5.8172]
[1747410901264,60.26,171.86,171.77,60.4]
[1747410901465,60.24,171.85,171.77,60.4]
[1747410901661,5.8175,171.84,171.77,60.4]
[1747410902162,5.8175,171.84,171.81,5.8181]
[1747410902562,5.819,171.8,171.7,8.50857433]
[1747410902767,60.24,171.79,171.73,60.24]
[1747410903463,60.24,171.79,171.76,5.8198]
[1747410903663,60.24,171.79,171.73,60.24]
[1747410903968,60.24,171.79,171.77,5.8196]
[1747410904264,66.0592,171.79,171.73,60.24]
[1747410904470,60.24,171.79,171.72,5.8211]
[1747410904763,5.8209,171.74,171.68,62.1851]
[1747410904969,66.0609,171.74,171.68,62.1851]
[1747410905370,60.24,171.74,171.68,62.1851]
[1747410906273,60.24,171.74,171.73,5.821]
[1747410907073,66.0791,171.79,171.77,5.8197]
[1747410907276,60.24,171.78,171.68,122.4251]
[1747410907573,66.0596,171.78,171.75,5.8202]
[1747410909274,60.24,171.78,171.76,5.82]
[1747410909672,66.0594,171.78,171.74,5.8204]
[1747410909879,60.24,171.77,171.68,122.4251]
[1747410910579,60.24,171.77,171.75,5.8201]
[1747410911074,66.0597,171.77,171.75,5.8201]
[1747410911275,66.0597,171.77,171.68,122.4251]
[1747410911276,60.24,171.77,171.68,62.1851]
[1747410911778,5.8205,171.75,171.68,62.1851]
[1747410912173,60.24,171.77,171.68,62.1851]
[1747410912371,60.26,171.76,171.68,62.1851]
[1747410912576,60.26,171.76,171.68,1.9451]
[1747410912888,60.26,171.76,171.65,64.1449]
[1747410913572,66.0801,171.76,171.65,64.1449]
[1747410913777,60.26,171.76,171.65,64.1449]
[1747410913977,5.8209,171.74,171.71,5.8214]
[1747410914186,60.24,171.73,171.65,64.1449]
[1747410915181,60.24,171.73,171.71,5.8214]
[1747410915577,60.24,171.73,171.65,64.1449]
[1747410915776,66.0803,171.76,171.73,5.8208]
[1747410915976,60.24,171.75,171.73,5.8208]
[1747410916483,66.0604,171.75,171.73,5.8208]
[1747410916673,60.24,171.75,171.71,5.8217]
[1747410916874,60.24,171.75,171.65,64.1449]
[1747410917276,60.24,171.75,171.71,5.8216]
[1747410917579,60.24,171.75,171.65,64.1449]
[1747410918187,66.0606,171.75,171.65,64.1449]
[1747410918484,66.0606,171.75,171.72,5.8212]
[1747410921287,66.0606,171.75,171.73,5.821]
[1747410921588,60.24,171.75,171.65,64.1449]
[1747410921783,60.24,171.75,171.74,5.8207]
[1747410922088,60.24,171.83,171.71,128.98857433]
[1747410922392,120.48,171.83,171.72,66.0294]
[1747410923089,60.24,171.85,171.74,8.50857433]
[1747410923279,60.24,171.85,171.75,60.24]
[1747410923475,60.24,171.85,171.76,60.24]
[1747410925792,60.24,171.85,171.84,5.8173]
[1747410925987,60.22,171.86,171.76,60.24]
[1747410926391,60.22,171.86,171.84,5.8171]
[1747410926697,60.22,171.86,171.76,60.24]
[1747410926993,60.22,171.86,171.84,5.8173]
[1747410927986,60.22,171.86,171.83,5.8175]
[1747410928693,66.0369,171.86,171.83,5.8175]
[1747410928889,60.22,171.86,171.76,60.24]
[1747410929394,60.22,171.86,171.8,5.8185]
[1747410929589,60.22,171.86,171.76,60.24]
[1747410930697,5.8174,171.84,171.81,5.8181]
[1747410931101,60.22,171.86,171.76,60.24]
[1747410931392,5.8179,171.83,171.76,60.24]
[1747410931597,60.22,171.86,171.76,60.24]
[1747410931897,5.8173,171.84,171.81,5.8181]
[1747410933795,5.8179,171.83,171.79,5.8188]
[1747410934004,120.42,171.82,171.72,66.0094]
[1747410934198,60.2,171.81,171.72,66.0094]
[1747410934499,66.0184,171.81,171.72,66.0094]
[1747410934901,5.8188,171.8,171.77,5.8195]
[1747410935400,5.8192,171.79,171.72,66.0094]
[1747410936603,60.2,171.81,171.72,66.0094]
[1747410936797,68.70857433,171.81,171.72,66.0094]
[1747410937297,5.8195,171.78,171.75,5.8202]
[1747410939207,60.18,171.77,171.72,64.1672]
[1747410939596,60.18,171.77,171.72,3.9472]
[1747410939800,60.18,171.77,171.69,60.22]
[1747410940007,60.18,171.77,171.66,64.1097]
[1747410940903,5.8209,171.74,171.71,5.8217]
[1747410941206,60.18,171.73,171.66,64.1097]
[1747410941404,60.18,171.73,171.71,5.8217]
[1747410942501,66.0011,171.73,171.71,5.8217]
[1747410942807,66.0011,171.73,171.7,5.8219]
[1747410943305,66.0011,171.73,171.71,5.8217]
[1747410944307,60.18,171.73,171.71,5.8217]
[1747410945108,66.0012,171.73,171.7,5.8219]
[1747410946509,60.18,171.73,171.71,5.8214]
[1747410946712,60.18,171.73,171.66,64.1097]
[1747410947612,60.18,171.73,171.72,5.8214]
[1747410948311,60.18,171.73,171.71,5.8216]
[1747410949511,60.18,171.73,171.66,64.1097]
[1747410949711,120.36,171.73,171.66,3.8897]
[1747410949911,120.36,171.73,171.66,2.0159]
[1747410950111,5.8225,171.69,171.66,7.8391]
[1747410950310,60.18,171.69,171.66,2.0159]
[1747410950612,60.18,171.69,171.67,5.8228]
[1747410951321,66.0025,171.69,171.66,7.8393]
[1747410951815,60.18,171.69,171.67,5.823]
[1747410952115,60.18,171.69,171.66,2.0159]
[1747410952718,66.0025,171.69,171.67,5.823]
[1747410953312,60.18,171.69,171.66,2.0159]
[1747410953510,5.8227,171.68,171.63,60.18]
[1747410954016,5.8227,171.68,171.65,5.8236]
[1747410954218,5.8231,171.67,171.65,5.8236]
[1747410954613,120.36,171.69,171.65,5.8236]
[1747410954917,5.8229,171.68,171.65,5.8236]
[1747410955122,120.36,171.69,171.66,5.8234]
[1747410955513,120.36,171.69,171.62,1.9288]
[1747410957418,120.36,171.69,171.68,5.8227]
[1747410957619,8.50857433,171.77,171.62,10.43737433]
[1747410957921,120.38,171.76,171.62,70.61737433]
[1747410958118,5.8208,171.74,171.62,70.61737433]
[1747410958422,5.8208,171.74,171.63,11.6489]
[1747410958612,5.8208,171.74,171.71,5.8215]
[1747410959127,5.8211,171.73,171.64,60.2]
[1747410959426,60.18,171.72,171.64,60.2]
[1747410959919,120.38,171.72,171.64,60.2]
[1747410960118,5.8222,171.7,171.67,5.8231]
[1747410960417,120.38,171.72,171.62,62.1088]
[1747410960919,5.8226,171.69,171.62,62.1088]
[1747410961117,5.8226,171.69,171.62,1.9288]
[1747410961316,5.8226,171.69,171.66,5.8232]
[1747410961517,120.38,171.72,171.62,1.9288]
[1747410961918,120.38,171.72,171.62,10.43737433]
[1747410962119,120.38,171.72,171.63,60.18]
[1747410962827,120.38,171.72,171.7,5.822]
[1747410963517,5.8212,171.73,171.7,5.822]
[1747410963921,65.9812,171.73,171.7,5.822]
[1747410964122,5.8216,171.72,171.69,5.8223]
[1747410964326,60.16,171.73,171.69,5.8223]
[1747410964622,5.8216,171.72,171.7,5.8221]
[1747410964922,60.16,171.73,171.64,60.2]
[1747410965122,60.16,171.73,171.71,5.8214]
[1747410965322,60.16,171.73,171.64,60.2]
[1747410965735,60.2,171.75,171.65,8.50857433]
[1747410966023,60.16,171.76,171.65,8.50857433]
[1747410966425,60.16,171.76,171.74,5.8206]
[1747410966726,60.16,171.76,171.69,60.2]
[1747410966924,60.16,171.76,171.7,1.8587]
[1747410967527,60.16,171.76,171.74,5.8206]
[1747410967729,60.2,171.78,171.7,1.8587]
[1747410968124,136.95608077,171.8,171.7,1.8587]
[1747410968326,60.16,171.79,171.7,1.8587]
[1747410968631,136.95608077,171.8,171.78,5.8192]
[1747410969227,126.1784,171.81,171.78,5.8192]
[1747410969424,126.1784,171.81,171.73,60.2]
[1747410969425,120.36,171.81,171.73,60.2]
[1747410970028,5.82,171.76,171.7,62.0387]
[1747410970628,5.8198,171.77,171.74,5.8207]
[1747410970827,60.14,171.77,171.74,5.8207]
[1747410971125,65.96,171.77,171.74,5.8207]
[1747410971335,60.14,171.77,171.7,62.0387]
[1747410971629,120.32,171.77,171.7,1.8587]
[1747410971835,120.32,171.77,171.71,5.8216]
[1747410972235,5.8209,171.74,171.71,5.8216]
[1747410972427,120.32,171.77,171.72,5.8212]
[1747410972627,120.32,171.77,171.7,1.8587]
[1747410972829,5.8211,171.73,171.7,1.8587]
[1747410973026,120.32,171.77,171.68,3.788]
[1747410973027,128.82857433,171.77,171.68,3.788]
[1747410973334,5.8221,171.7,171.66,1.8847]
[1747410973526,60.14,171.71,171.66,1.8847]
[1747410973834,5.8223,171.7,171.67,5.823]
[1747410974233,5.8223,171.7,171.66,1.8847]
[1747410974429,5.8228,171.68,171.64,60.18]
[1747410974636,60.14,171.71,171.64,60.18]
[1747410974935,65.9618,171.71,171.68,5.8227]
[1747410975138,60.14,171.71,171.64,60.18]
[1747410975535,5.8221,171.7,171.67,5.8228]
[1747410975735,60.14,171.71,171.64,60.18]
[1747410976724,60.14,171.71,171.7,5.8221]
[1747410977128,8.50857433,171.77,171.64,60.18]
[1747410977331,60.14,171.76,171.64,120.32]
[1747410977732,65.9602,171.76,171.73,5.8208]
[1747410977932,65.9602,171.76,171.68,60.18]
[1747410977933,60.14,171.76,171.68,60.18]
[1747410978234,5.8208,171.74,171.7,5.8217]
[1747410978630,5.8208,171.74,171.68,60.18]
[1747410978831,60.14,171.76,171.68,60.18]
[1747410979347,5.8209,171.74,171.7,5.8219]
[1747410979831,5.8205,171.75,171.68,60.18]
[1747410980028,60.14,171.76,171.68,60.18]
[1747410980324,60.14,171.76,171.69,1.8206]
[1747410980734,65.9601,171.76,171.69,1.8206]
[1747410981241,65.9601,171.76,171.73,5.8208]
[1747410982242,5.8204,171.75,171.72,5.8212]
[1747410983330,5.8207,171.74,171.72,5.8212]
[1747410983635,60.14,171.76,171.72,5.8212]
[1747410983827,5.8206,171.75,171.73,5.821]
[1747410984537,5.8207,171.74,171.69,1.8206]
[1747410984734,60.14,171.76,171.69,1.8206]
[1747410985336,5.8207,171.74,171.71,5.8217]
[1747410987440,5.8207,171.74,171.72,5.8214]
[1747410987736,5.8207,171.74,171.69,1.8206]
[1747410988138,5.8207,171.74,171.71,5.8215]
[1747410989538,5.8205,171.75,171.72,5.8213]
[1747410989737,60.14,171.76,171.72,5.8213]
[1747410990538,5.8208,171.74,171.71,5.8216]
[1747410991635,60.1,171.74,171.69,1.8206]
[1747410992036,60.1,171.74,171.73,5.821]
[1747410992337,66.0,171.77,171.7,1.9839]
[1747410992641,60.1,171.76,171.74,5.8205]
[1747410993737,65.9201,171.76,171.73,5.8209]
[1747410994234,65.9201,171.76,171.74,5.8206]
[1747410994663,65.9201,171.76,171.7,1.9839]
[1747410994836,65.9201,171.76,171.73,5.8209]
[1747410995041,65.9201,171.76,171.7,1.9839]
[1747410996543,65.9201,171.76,171.74,5.8207]
[1747410996841,60.1,171.76,171.69,1.8206]
[1747410997236,5.8209,171.74,171.71,5.8216]
[1747410997437,5.8209,171.74,171.69,1.8206]
[1747410997840,5.8205,171.75,171.69,1.8206]
[1747410998039,60.1,171.76,171.69,1.8206]
[1747410998339,65.9203,171.76,171.73,5.8209]
[1747410998945,5.8204,171.75,171.73,5.8209]
[1747410999243,5.8204,171.75,171.69,1.8206]
[1747410999244,60.08,171.78,171.7,60.12]
[1747411000133,5.8198,171.77,171.7,60.12]
[1747411000350,136.92807208,171.83,171.71,8.50857433]
[1747411000745,60.08,171.84,171.74,8.50857433]
[1747411000947,60.08,171.84,171.75,60.12]
[1747411001245,60.08,171.84,171.83,5.8177]
[1747411001448,60.08,171.84,171.76,3.865]
[1747411002039,68.58857433,171.84,171.75,5.8203]
[1747411002239,8.50857433,171.81,171.75,5.8203]
[1747411002548,60.06,171.8,171.75,5.8203]
[1747411002843,60.06,171.8,171.74,5.8206]
[1747411003240,5.8196,171.78,171.74,5.8206]
[1747411003845,5.8196,171.78,171.75,5.8202]
[1747411004546,5.8191,171.79,171.76,5.8199]
[1747411005839,60.06,171.8,171.75,5.8203]
[1747411006448,60.06,171.8,171.72,1.988]
[1747411006849,60.06,171.8,171.68,60.1]
[1747411006850,8.50857433,171.78,171.68,60.1]
[1747411007049,60.1,171.77,171.68,60.1]
[1747411007347,60.06,171.76,171.68,60.1]
[1747411007945,8.50857433,171.75,171.67,1.9898]
[1747411008439,5.8219,171.71,171.68,5.8226]
[1747411008644,65.8819,171.71,171.68,5.8226]
[1747411009250,60.06,171.71,171.68,5.8226]
[1747411009450,60.06,171.71,171.67,1.9898]
[1747411009451,60.06,171.71,171.7,5.8221]
[1747411009953,8.50857433,171.78,171.67,1.9898]
[1747411010250,60.04,171.75,171.67,1.9898]
[1747411011047,65.8606,171.75,171.67,1.9898]
[1747411011449,65.8606,171.75,171.72,5.8212]
[1747411012351,60.04,171.75,171.73,5.821]
[1747411012545,60.04,171.75,171.67,1.9898]
[1747411012747,60.04,171.75,171.68,1.9443]
[1747411012947,60.04,171.75,171.73,5.8208]
[1747411013151,60.04,171.75,171.69,60.04]
[1747411014153,60.04,171.75,171.73,5.8207]
[1747411014648,60.04,171.75,171.74,5.8207]
[1747411016357,60.04,171.75,171.74,5.8207]
[1747411016756,5.8195,171.78,171.75,5.8203]
[1747411016956,65.8595,171.78,171.7,1.9123]
[1747411017254,60.04,171.82,171.7,61.9523]
[1747411017565,60.04,171.8,171.7,61.9523]
[1747411017855,60.04,171.8,171.78,5.8191]
[1747411018556,60.04,171.82,171.74,1.8535]
[1747411018765,60.04,171.81,171.74,3.6735]
[1747411018948,65.8584,171.81,171.77,5.8195]
[1747411019150,60.04,171.81,171.77,5.8195]
[1747411019355,60.04,171.81,171.74,3.6735]
[1747411019657,68.54857433,171.81,171.74,1.8535]
[1747411020157,5.8199,171.77,171.74,1.8535]
[1747411020357,65.8599,171.77,171.74,1.8535]
[1747411020557,60.04,171.77,171.74,1.8535]
[1747411020857,60.04,171.77,171.72,5.8213]
[1747411021159,5.8207,171.75,171.71,5.8216]
[1747411021351,60.04,171.74,171.64,1.8294]
[1747411021552,60.02,171.73,171.64,63.8115]
[1747411021755,60.02,171.73,171.67,5.8228]
[1747411022654,5.8224,171.7,171.67,5.8228]
[1747411022960,60.02,171.69,171.64,63.8115]
[1747411023354,60.02,171.69,171.66,5.8232]
[1747411023554,60.02,171.69,171.64,63.8115]
[1747411024462,60.02,171.7,171.65,5.8236]
[1747411024869,5.8226,171.69,171.64,63.8115]
[1747411025161,60.02,171.7,171.64,63.8115]
[1747411025863,65.8422,171.7,171.67,5.823]
[1747411026163,60.02,171.7,171.64,63.8115]
[1747411027559,5.8226,171.69,171.66,5.8233]
[1747411027762,60.04,171.68,171.58,5.7749553]
[1747411027956,60.04,171.68,171.58,65.8149553]
[1747411028157,5.8235,171.66,171.61,5.8251]
[1747411028359,60.04,171.66,171.61,5.8251]
[1747411028666,5.824,171.65,171.61,5.8251]
[1747411029164,65.8637,171.66,171.58,65.8149553]
[1747411029466,60.04,171.66,171.64,5.8239]
[1747411029767,60.04,171.66,171.58,65.8149553]
[1747411030269,60.04,171.66,171.65,5.8238]
[1747411030463,60.04,171.7,171.62,60.06]
[1747411030773,60.06,171.72,171.7,5.8219]
[1747411031066,60.06,171.72,171.63,65.834]
[1747411031271,60.04,171.73,171.72,5.8214]
[1747411031565,60.04,171.74,171.67,60.06]
[1747411031961,60.04,171.74,171.72,5.8212]
[1747411032268,60.04,171.74,171.67,60.06]
[1747411032567,65.8607,171.74,171.67,60.06]
[1747411032969,60.04,171.74,171.67,60.06]
[1747411033665,60.04,171.74,171.64,60.06]
[1747411033968,5.8215,171.72,171.69,5.8224]
[1747411034270,60.04,171.74,171.64,60.06]
[1747411035175,60.04,171.74,171.71,5.8216]
[1747411035969,60.04,171.74,171.64,60.06]
[1747411036974,60.04,171.74,171.67,5.8229]
[1747411038464,60.04,171.74,171.64,60.06]
[1747411039271,68.56857433,171.75,171.64,60.06]
[1747411039569,65.8409,171.74,171.64,60.06]
[1747411039872,60.02,171.74,171.64,60.06]
[1747411040369,65.8408,171.74,171.71,5.8215]
[1747411041868,60.02,171.74,171.64,60.06]
[1747411042173,60.02,171.74,171.63,5.774]
[1747411042370,60.02,171.74,171.67,5.823]
[1747411042773,60.02,171.74,171.63,5.774]
[1747411042969,5.8214,171.72,171.69,5.8223]
[1747411043272,60.02,171.74,171.63,5.774]
[1747411044072,5.8221,171.71,171.63,5.774]
[1747411044279,60.02,171.7,171.63,5.774]
[1747411044873,60.02,171.7,171.68,5.8225]
[1747411045171,60.02,171.7,171.63,5.774]
[1747411046073,60.02,171.7,171.69,5.8224]
[1747411046677,5.8212,171.73,171.7,5.8219]
[1747411046871,5.8215,171.72,171.63,5.774]
[1747411047174,60.02,171.73,171.67,5.8229]
[1747411047365,60.02,171.73,171.63,5.774]
[1747411047764,60.02,171.73,171.67,5.8229]
[1747411048065,5.822,171.71,171.63,5.774]
[1747411048261,60.02,171.73,171.63,5.774]
[1747411048466,5.8215,171.72,171.63,5.774]
[1747411048877,60.02,171.73,171.7,5.822]
[1747411049175,65.8412,171.73,171.66,60.02]
[1747411049974,65.8412,171.73,171.7,5.8218]
[1747411050876,5.8214,171.72,171.69,5.8223]
[1747411051076,60.02,171.73,171.69,5.8223]
[1747411051271,60.02,171.73,171.66,60.02]
[1747411051574,5.8216,171.72,171.66,60.02]
[1747411052074,60.06,171.75,171.66,60.02]
[1747411052272,60.0,171.74,171.66,60.02]
[1747411052470,136.98139281,171.77,171.66,68.52857433]
[1747411052772,8.50857433,171.84,171.69,8.50857433]
[1747411052974,120.0,171.83,171.7,65.8164]
[1747411053275,5.8189,171.8,171.77,5.8197]
[1747411053481,60.0,171.8,171.7,65.8164]
[1747411054172,65.8187,171.8,171.77,5.8194]
[1747411054667,5.8187,171.8,171.77,5.8196]
[1747411054980,5.8191,171.79,171.77,5.8196]
[1747411055273,60.0,171.81,171.74,60.0]
[1747411055574,60.0,171.83,171.74,60.0]
[1747411055875,60.0,171.84,171.74,60.0]
[1747411056274,65.8175,171.84,171.74,60.0]
[1747411056671,5.8169,171.86,171.75,8.50857433]
[1747411056877,59.98,171.86,171.75,8.50857433]
[1747411058080,59.98,171.86,171.83,5.8174]
[1747411058477,60.0,171.9,171.81,60.0]
[1747411058676,5.816,171.88,171.85,5.817]
[1747411058876,1.16367021,171.87,171.85,5.817]
[1747411061282,6.97997021,171.87,171.84,5.8172]
[1747411061583,1.16367021,171.87,171.84,5.8172]
[1747411062087,5.816,171.88,171.81,60.0]
[1747411062783,5.816,171.88,171.85,5.8168]
[1747411063086,125.01280559,172.04,171.85,59.98]
[1747411063382,119.92,171.95,171.85,68.48857433]
[1747411063577,59.94,171.95,171.86,5.639]
[1747411063780,5.8142,171.94,171.86,5.639]
[1747411064277,5.8147,171.92,171.86,5.639]
[1747411064480,59.94,171.95,171.86,5.639]
[1747411065177,5.8149,171.92,171.88,5.8157]
[1747411065384,59.94,171.95,171.86,5.639]
[1747411065785,5.8146,171.92,171.89,5.8154]
[1747411065983,59.94,171.95,171.86,5.639]
[1747411066483,5.8147,171.92,171.86,5.639]
[1747411066680,59.94,171.95,171.86,5.639]
[1747411066982,5.8148,171.92,171.89,5.8156]
[1747411067384,59.94,171.95,171.86,5.639]
[1747411067978,5.8144,171.93,171.87,59.96]
[1747411068278,59.94,171.95,171.87,59.96]
[1747411068480,59.98,171.98,171.91,5.8147]
[1747411068685,59.92,171.97,171.91,5.8147]
[1747411069588,5.8142,171.94,171.9,5.8152]
[1747411069884,59.92,171.97,171.9,5.8152]
[1747411070386,59.92,171.97,171.87,59.96]
[1747411070886,5.8146,171.92,171.89,5.8155]
[1747411071088,59.92,171.93,171.87,59.96]
[1747411071489,5.8152,171.91,171.87,59.96]
[1747411071884,59.92,171.93,171.87,59.96]
[1747411072588,65.7345,171.93,171.9,5.8152]
[1747411072790,59.92,171.93,171.87,59.96]
[1747411073086,65.7344,171.93,171.9,5.8153]
[1747411073387,59.92,171.93,171.87,59.96]
[1747411073686,5.8149,171.92,171.89,5.8154]
[1747411074289,5.815,171.91,171.88,5.8159]
[1747411075285,59.9,171.94,171.87,59.96]
[1747411075489,59.9,171.97,171.87,59.96]
[1747411075676,59.9,172.0,171.88,59.9]
[1747411075879,59.9,172.0,171.89,1.8596]
[1747411076284,59.9,172.03,171.89,1.8596]
[1747411076483,5.8121,172.0,171.97,5.8129]
[1747411076683,59.9,172.02,171.97,5.8129]
[1747411076886,5.8121,172.0,171.97,5.8129]
[1747411077190,59.9,172.02,171.95,5.8133]
[1747411077490,5.8125,171.99,171.95,5.8133]
[1747411077679,59.88,172.07,171.93,119.78]
[1747411077884,59.88,172.06,171.94,3.8416]
[1747411078284,8.50857433,172.05,171.96,5.813]
[1747411078484,8.50857433,172.05,171.94,63.7216]
[1747411078689,5.8115,172.02,171.94,63.7216]
[1747411078991,59.88,172.02,171.94,63.7216]
[1747411079288,65.6904,172.05,172.01,5.8113]
[1747411079490,59.88,172.05,171.94,3.8416]
[1747411079684,59.88,172.05,171.95,59.88]
[1747411079886,59.88,172.05,171.99,5.812]
[1747411080192,59.88,172.05,171.95,59.88]
[1747411080493,59.88,172.05,171.98,5.8124]
[1747411080790,5.8115,172.02,171.98,5.8124]
[1747411081091,5.8115,172.02,171.99,5.8121]
[1747411081787,5.8106,172.04,171.95,59.88]
[1747411082090,59.88,172.05,171.95,59.88]
[1747411082493,5.8111,172.03,172.0,5.8118]
[1747411082696,59.88,172.05,171.95,59.88]
[1747411082899,5.8115,172.02,171.99,5.812]
[1747411083591,5.8117,172.01,171.95,59.88]
[1747411083895,59.88,172.05,171.95,59.88]
[1747411084197,5.8115,172.02,171.98,5.8123]
[1747411084494,59.88,172.05,171.98,5.8123]
[1747411084900,59.88,172.05,171.97,5.8129]
[1747411085189,5.8109,172.03,171.95,59.88]
[1747411085390,59.88,172.07,171.95,59.88]
[1747411085585,59.86,172.06,171.95,59.88]
[1747411085791,8.50857433,172.11,171.97,8.50857433]
[1747411085986,68.36857433,172.14,172.0,8.50857433]
[1747411086192,59.86,172.14,172.02,8.50857433]
[1747411086492,59.84,172.13,172.03,65.5471]
[1747411087695,59.84,172.14,172.05,8.50857433]
[1747411087897,8.50857433,172.22,172.06,59.86]